[Event "Titled Tuesday Blitz April 11 Early 2023"]
[White "Kopczynski, Michal"]
[Black "Rodshtein, Maxim"]
[WhiteFideId "1124200"]
[BlackFideId "2806851"]
[WhiteElo "2212"]
[BlackElo "2555"]
[Result "1/2-1/2"]
[Round "01"]
[TimeControl "180+2"]
[Date "2023.04.11"]
[WhiteClock "0:00:08"]
[BlackClock "0:00:24"]

1. e4 {[%clk 0:03:00]}  g6 {[%clk 0:02:50]} 2. d4 {[%clk 0:02:59]}  Bg7 {[%clk 0:02:50]} 3. Nc3 {[%clk 0:02:59]}  d6 {[%clk 0:02:50]} 4. Be3 {[%clk 0:03:00]}  a6 {[%clk 0:02:49]} 5. Qd2 {[%clk 0:03:00]}  Nd7 {[%clk 0:02:48]} 6. O-O-O {[%clk 0:03:00]}  b5 {[%clk 0:02:48]} 7. h4 {[%clk 0:02:59]}  h6 {[%clk 0:02:46]} 8. h5 {[%clk 0:02:58]}  g5 {[%clk 0:02:46]} 9. f4 {[%clk 0:02:58]}  gxf4 {[%clk 0:02:46]} 10. Bxf4 {[%clk 0:02:59]}  Bb7 {[%clk 0:02:45]} 11. Nf3 {[%clk 0:02:57]}  e6 {[%clk 0:02:35]} 12. e5 {[%clk 0:02:55]}  b4 {[%clk 0:02:21]} 13. Ne2 {[%clk 0:02:48]}  a5 {[%clk 0:01:53]} 14. exd6 {[%clk 0:02:45]}  cxd6 {[%clk 0:01:54]} 15. Bxd6 {[%clk 0:02:41]}  Qb6 {[%clk 0:01:54]} 16. Be5 {[%clk 0:01:59]}  Ngf6 {[%clk 0:01:41]} 17. Nf4 {[%clk 0:01:47]}  Ne4 {[%clk 0:01:32]} 18. Qe1 {[%clk 0:01:35]}  Nxe5 {[%clk 0:01:30]} 19. dxe5 {[%clk 0:01:17]}  Nf2 {[%clk 0:01:24]} 20. Bb5+ {[%clk 0:01:10]}  Kf8 {[%clk 0:01:24]} 21. Qe2 {[%clk 0:00:59]}  Nxh1 {[%clk 0:01:19]} 22. Rxh1 {[%clk 0:01:00]}  Rd8 {[%clk 0:01:04]} 23. Rf1 {[%clk 0:00:53]}  Ke7 {[%clk 0:00:49]} 24. Nh4 {[%clk 0:00:41]}  Rd4 {[%clk 0:00:29]} 25. Ba4 {[%clk 0:00:32]}  Kd8 {[%clk 0:00:24]} 26. Nd3 {[%clk 0:00:27]}  Qc7 {[%clk 0:00:19]} 27. Nf3 {[%clk 0:00:24]}  Re4 {[%clk 0:00:19]} 28. Qf2 {[%clk 0:00:22]}  Kc8 {[%clk 0:00:19]} 29. Qa7 {[%clk 0:00:20]}  Rd8 {[%clk 0:00:17]} 30. Kb1 {[%clk 0:00:17]}  Bf8 {[%clk 0:00:16]} 31. Nd2 {[%clk 0:00:16]}  Red4 {[%clk 0:00:15]} 32. Nb3 {[%clk 0:00:16]}  R4d5 {[%clk 0:00:15]} 33. g4 {[%clk 0:00:09]}  Bc6 {[%clk 0:00:13]} 34. Qa6+ {[%clk 0:00:08]}  Bb7 {[%clk 0:00:13]} 35. Qa7 {[%clk 0:00:08]}  Rxe5 {[%clk 0:00:06]} 36. Nxe5 {[%clk 0:00:07]}  Qxe5 {[%clk 0:00:07]} 37. Qxa5 {[%clk 0:00:07]}  Qxa5 {[%clk 0:00:06]} 38. Nxa5 {[%clk 0:00:07]}  Bg2 {[%clk 0:00:06]} 39. Rg1 {[%clk 0:00:07]}  Bc5 {[%clk 0:00:07]} 40. Rc1 {[%clk 0:00:05]}  Bf3 {[%clk 0:00:07]} 41. Nc4 {[%clk 0:00:03]}  Bxg4 {[%clk 0:00:06]} 42. a3 {[%clk 0:00:04]}  bxa3 {[%clk 0:00:06]} 43. bxa3 {[%clk 0:00:05]}  Bf5 {[%clk 0:00:06]} 44. Ka2 {[%clk 0:00:04]}  Kc7 {[%clk 0:00:07]} 45. Rb1 {[%clk 0:00:03]}  Rd4 {[%clk 0:00:06]} 46. Bb3 {[%clk 0:00:03]}  f6 {[%clk 0:00:05]} 47. Rg1 {[%clk 0:00:03]}  Re4 {[%clk 0:00:05]} 48. Rg7+ {[%clk 0:00:03]}  Kc6 {[%clk 0:00:05]} 49. Rh7 {[%clk 0:00:03]}  Re2 {[%clk 0:00:05]} 50. Rxh6 {[%clk 0:00:03]}  Bd4 {[%clk 0:00:05]} 51. Rh8 {[%clk 0:00:02]}  Re1 {[%clk 0:00:05]} 52. Ba4+ {[%clk 0:00:02]}  Kb7 {[%clk 0:00:04]} 53. Na5+ {[%clk 0:00:01]}  Kc7 {[%clk 0:00:03]} 54. Nb3 {[%clk 0:00:02]}  Bc3 {[%clk 0:00:03]} 55. Rg8 {[%clk 0:00:02]}  Bxc2 {[%clk 0:00:03]} 56. Rg7+ {[%clk 0:00:02]}  Kd6 {[%clk 0:00:02]} 57. h6 {[%clk 0:00:01]}  Bxb3+ {[%clk 0:00:03]} 58. Kxb3 {[%clk 0:00:02]}  Be5 {[%clk 0:00:02]} 59. h7 {[%clk 0:00:02]}  Re3+ {[%clk 0:00:03]} 60. Kc4 {[%clk 0:00:02]}  Rh3 {[%clk 0:00:04]} 61. Kb5 {[%clk 0:00:03]}  Rh4 {[%clk 0:00:05]} 62. Rf7 {[%clk 0:00:03]}  f5 {[%clk 0:00:05]} 63. Kb6 {[%clk 0:00:02]}  Bd4+ {[%clk 0:00:06]} 64. Kb5 {[%clk 0:00:02]}  Ke5 {[%clk 0:00:07]} 65. Bb3 {[%clk 0:00:03]}  Rh2 {[%clk 0:00:08]} 66. Re7 {[%clk 0:00:03]}  Rh3 {[%clk 0:00:08]} 67. Rxe6+ {[%clk 0:00:03]}  Kf4 {[%clk 0:00:09]} 68. Kc4 {[%clk 0:00:03]}  Be5 {[%clk 0:00:09]} 69. Re7 {[%clk 0:00:04]}  Rc3+ {[%clk 0:00:09]} 70. Kb4 {[%clk 0:00:04]}  Rh3 {[%clk 0:00:09]} 71. Bg8 {[%clk 0:00:04]}  Bd6+ {[%clk 0:00:10]} 72. Kb5 {[%clk 0:00:04]}  Bxe7 {[%clk 0:00:11]} 73. a4 {[%clk 0:00:05]}  Bf6 {[%clk 0:00:11]} 74. a5 {[%clk 0:00:05]}  Ra3 {[%clk 0:00:12]} 75. a6 {[%clk 0:00:06]}  Bh8 {[%clk 0:00:12]} 76. Kb6 {[%clk 0:00:06]}  Ke3 {[%clk 0:00:13]} 77. a7 {[%clk 0:00:06]}  f4 {[%clk 0:00:14]} 78. Kb7 {[%clk 0:00:07]}  f3 {[%clk 0:00:14]} 79. a8=Q {[%clk 0:00:05]}  Rxa8 {[%clk 0:00:14]} 80. Kxa8 {[%clk 0:00:06]}  Kd4 {[%clk 0:00:15]} 81. Be6 {[%clk 0:00:04]}  f2 {[%clk 0:00:16]} 82. Bh3 {[%clk 0:00:04]}  Ke3 {[%clk 0:00:17]} 83. Bf1 {[%clk 0:00:04]}  Kd2 {[%clk 0:00:17]} 84. Ba6 {[%clk 0:00:04]}  Ke1 {[%clk 0:00:18]} 85. Kb7 {[%clk 0:00:04]}  f1=Q {[%clk 0:00:19]} 86. Bxf1 {[%clk 0:00:04]}  Kxf1 {[%clk 0:00:20]} 87. Kc6 {[%clk 0:00:05]}  Kg2 {[%clk 0:00:21]} 88. Kd7 {[%clk 0:00:06]}  Kg3 {[%clk 0:00:22]} 89. Ke6 {[%clk 0:00:06]}  Kg4 {[%clk 0:00:23]} 90. Kf7 {[%clk 0:00:07]}  Kg5 {[%clk 0:00:23]} 91. Kg8 {[%clk 0:00:07]}  Bf6 {[%clk 0:00:24]} 92. h8=Q {[%clk 0:00:08]}  Bxh8 {[%clk 0:00:24]} 1/2-1/2


[Site "https://www.chess.com"]

[Event "Titled Tuesday Blitz April 11 Early 2023"]
[White "Yuan, Qingyu"]
[Black "Leebit02"]
[WhiteFideId "8609772"]
[WhiteElo "2359"]
[BlackElo "2429"]
[Result "0-1"]
[Round "01"]
[TimeControl "180+2"]
[Date "2023.04.11"]
[WhiteClock "0:01:12"]
[BlackClock "0:00:58"]

1. d4 {[%clk 0:03:00]}  Nf6 {[%clk 0:02:57]} 2. c4 {[%clk 0:03:00]}  g6 {[%clk 0:02:56]} 3. Nf3 {[%clk 0:03:00]}  Bg7 {[%clk 0:02:54]} 4. g3 {[%clk 0:03:00]}  d5 {[%clk 0:02:48]} 5. cxd5 {[%clk 0:02:59]}  Nxd5 {[%clk 0:02:48]} 6. Bg2 {[%clk 0:03:00]}  Nb6 {[%clk 0:02:44]} 7. O-O {[%clk 0:03:00]}  O-O {[%clk 0:02:44]} 8. Nc3 {[%clk 0:02:51]}  Nc6 {[%clk 0:02:27]} 9. e3 {[%clk 0:02:47]}  a5 {[%clk 0:02:04]} 10. Na4 {[%clk 0:02:40]}  Nxa4 {[%clk 0:01:44]} 11. Qxa4 {[%clk 0:02:41]}  e5 {[%clk 0:01:44]} 12. dxe5 {[%clk 0:02:14]}  Nxe5 {[%clk 0:01:44]} 13. Nxe5 {[%clk 0:02:06]}  Bxe5 {[%clk 0:01:44]} 14. Rd1 {[%clk 0:02:06]}  Qe7 {[%clk 0:01:40]} 15. Bd2 {[%clk 0:02:01]}  c6 {[%clk 0:01:34]} 16. Bc3 {[%clk 0:01:58]}  Bxc3 {[%clk 0:01:27]} 17. bxc3 {[%clk 0:01:58]}  Be6 {[%clk 0:01:28]} 18. Rd2 {[%clk 0:01:50]}  Rfd8 {[%clk 0:01:24]} 19. Rad1 {[%clk 0:01:49]}  Rxd2 {[%clk 0:01:21]} 20. Rxd2 {[%clk 0:01:50]}  Rd8 {[%clk 0:01:22]} 21. Rd4 {[%clk 0:01:47]}  Qc7 {[%clk 0:01:18]} 22. h4 {[%clk 0:01:42]}  h5 {[%clk 0:01:15]} 23. a3 {[%clk 0:01:40]}  Qb6 {[%clk 0:01:12]} 24. Bf3 {[%clk 0:01:29]}  Kg7 {[%clk 0:01:08]} 25. Kg2 {[%clk 0:01:29]}  Bb3 {[%clk 0:01:00]} 26. Rb4 {[%clk 0:01:16]}  Qxb4 {[%clk 0:00:58]} 27. axb4 {[%clk 0:01:12]}  Bxa4 {[%clk 0:00:58]} 0-1


[Site "https://www.chess.com"]

[Event "Titled Tuesday Blitz April 11 Early 2023"]
[White "Estrada Nieto, Julian"]
[Black "Rohith Krishna S"]
[WhiteFideId "5101018"]
[BlackFideId "46617051"]
[WhiteElo "2161"]
[BlackElo "2270"]
[Result "0-1"]
[Round "01"]
[TimeControl "180+2"]
[Date "2023.04.11"]
[WhiteClock "0:00:16"]
[BlackClock "0:00:18"]

1. e4 {[%clk 0:02:59]}  e5 {[%clk 0:02:58]} 2. Nf3 {[%clk 0:03:00]}  Nc6 {[%clk 0:02:51]} 3. Bb5 {[%clk 0:02:59]}  a6 {[%clk 0:02:50]} 4. Ba4 {[%clk 0:02:59]}  Nf6 {[%clk 0:02:49]} 5. O-O {[%clk 0:02:59]}  b5 {[%clk 0:02:47]} 6. Bb3 {[%clk 0:02:59]}  Be7 {[%clk 0:02:47]} 7. a4 {[%clk 0:02:59]}  b4 {[%clk 0:02:38]} 8. d3 {[%clk 0:02:55]}  d6 {[%clk 0:02:32]} 9. h3 {[%clk 0:02:52]}  Na5 {[%clk 0:02:31]} 10. Ba2 {[%clk 0:02:49]}  Rb8 {[%clk 0:02:32]} 11. Nbd2 {[%clk 0:02:49]}  O-O {[%clk 0:02:31]} 12. Nc4 {[%clk 0:02:49]}  Nxc4 {[%clk 0:02:28]} 13. Bxc4 {[%clk 0:02:48]}  a5 {[%clk 0:02:29]} 14. Re1 {[%clk 0:02:36]}  Nd7 {[%clk 0:02:25]} 15. Be3 {[%clk 0:02:35]}  Nb6 {[%clk 0:02:25]} 16. Bb3 {[%clk 0:02:27]}  c5 {[%clk 0:02:18]} 17. Nd2 {[%clk 0:02:27]}  Kh8 {[%clk 0:02:11]} 18. Qh5 {[%clk 0:02:19]}  f5 {[%clk 0:02:06]} 19. exf5 {[%clk 0:02:01]}  Bxf5 {[%clk 0:01:58]} 20. Qe2 {[%clk 0:01:50]}  Qe8 {[%clk 0:01:54]} 21. f3 {[%clk 0:01:44]}  Qg6 {[%clk 0:01:50]} 22. Kh1 {[%clk 0:01:40]}  Nd7 {[%clk 0:01:47]} 23. Ne4 {[%clk 0:01:37]}  Bh4 {[%clk 0:01:38]} 24. Bf2 {[%clk 0:01:36]}  Bxf2 {[%clk 0:01:25]} 25. Qxf2 {[%clk 0:01:34]}  Rbc8 {[%clk 0:01:16]} 26. Qh4 {[%clk 0:01:32]}  Nb6 {[%clk 0:01:12]} 27. Qe7 {[%clk 0:01:26]}  Bxh3 {[%clk 0:00:59]} 28. gxh3 {[%clk 0:01:22]}  Rxf3 {[%clk 0:00:46]} 29. Ng5 {[%clk 0:01:22]}  Qh5 {[%clk 0:00:46]} 30. Nf7+ {[%clk 0:01:06]}  Rxf7 {[%clk 0:00:39]} 31. Qxf7 {[%clk 0:01:05]}  Qxh3+ {[%clk 0:00:40]} 32. Kg1 {[%clk 0:01:05]}  c4 {[%clk 0:00:38]} 33. Bxc4 {[%clk 0:00:56]}  d5 {[%clk 0:00:37]} 34. Ba6 {[%clk 0:00:51]}  Rg8 {[%clk 0:00:25]} 35. Qf2 {[%clk 0:00:46]}  Nd7 {[%clk 0:00:24]} 36. Re3 {[%clk 0:00:44]}  Qh6 {[%clk 0:00:21]} 37. Rf3 {[%clk 0:00:37]}  Qxa6 {[%clk 0:00:20]} 38. Rf1 {[%clk 0:00:35]}  Qg6+ {[%clk 0:00:21]} 39. Rg3 {[%clk 0:00:35]}  Qc6 {[%clk 0:00:20]} 40. Qf7 {[%clk 0:00:31]}  Nf6 {[%clk 0:00:18]} 41. Kh2 {[%clk 0:00:27]}  e4 {[%clk 0:00:17]} 42. dxe4 {[%clk 0:00:19]}  dxe4 {[%clk 0:00:17]} 43. Rf5 {[%clk 0:00:19]}  e3 {[%clk 0:00:16]} 44. Rxf6 {[%clk 0:00:16]}  Qxf6 {[%clk 0:00:15]} 45. Qxf6 {[%clk 0:00:16]}  gxf6 {[%clk 0:00:15]} 46. Rxe3 {[%clk 0:00:17]}  Rd8 {[%clk 0:00:16]} 47. Re6 {[%clk 0:00:16]}  Rd2+ {[%clk 0:00:16]} 48. Kg3 {[%clk 0:00:17]}  Rxc2 {[%clk 0:00:16]} 49. Rxf6 {[%clk 0:00:18]}  Rxb2 {[%clk 0:00:16]} 50. Ra6 {[%clk 0:00:19]}  Ra2 {[%clk 0:00:15]} 51. Rxa5 {[%clk 0:00:19]}  Kg7 {[%clk 0:00:16]} 52. Ra7+ {[%clk 0:00:19]}  Kf6 {[%clk 0:00:16]} 53. Ra6+ {[%clk 0:00:20]}  Ke5 {[%clk 0:00:16]} 54. Ra5+ {[%clk 0:00:18]}  Kd4 {[%clk 0:00:16]} 55. Ra7 {[%clk 0:00:19]}  Kc3 {[%clk 0:00:17]} 56. Rc7+ {[%clk 0:00:19]}  Kb2 {[%clk 0:00:16]} 57. Ra7 {[%clk 0:00:17]}  b3 {[%clk 0:00:17]} 58. Kf4 {[%clk 0:00:17]}  Ka1 {[%clk 0:00:17]} 59. Ke4 {[%clk 0:00:16]}  b2 {[%clk 0:00:18]} 0-1


[Site "https://www.chess.com"]

[Event "Titled Tuesday Blitz April 11 Early 2023"]
[White "Ioannidis, Evgenios"]
[Black "Melikhov, Evgeny V."]
[WhiteFideId "4229274"]
[BlackFideId "4122046"]
[WhiteElo "2386"]
[BlackElo "2158"]
[Result "1-0"]
[Round "01"]
[TimeControl "180+2"]
[Date "2023.04.11"]
[WhiteClock "0:00:37"]
[BlackClock "0:00:04"]

1. d4 {[%clk 0:02:59]}  Nf6 {[%clk 0:02:59]} 2. c4 {[%clk 0:02:59]}  e6 {[%clk 0:02:59]} 3. Nc3 {[%clk 0:03:00]}  Bb4 {[%clk 0:02:59]} 4. Qc2 {[%clk 0:03:00]}  c5 {[%clk 0:02:58]} 5. dxc5 {[%clk 0:02:59]}  Na6 {[%clk 0:02:58]} 6. a3 {[%clk 0:02:59]}  Bxc3+ {[%clk 0:02:58]} 7. Qxc3 {[%clk 0:03:00]}  Nxc5 {[%clk 0:02:59]} 8. b4 {[%clk 0:03:00]}  Nce4 {[%clk 0:02:57]} 9. Qb2 {[%clk 0:03:01]}  d5 {[%clk 0:02:55]} 10. c5 {[%clk 0:03:01]}  h6 {[%clk 0:02:47]} 11. f3 {[%clk 0:02:46]}  Ng5 {[%clk 0:02:46]} 12. Bf4 {[%clk 0:02:22]}  O-O {[%clk 0:02:38]} 13. e3 {[%clk 0:02:22]}  Re8 {[%clk 0:02:31]} 14. Bd3 {[%clk 0:02:09]}  Bd7 {[%clk 0:01:48]} 15. Ne2 {[%clk 0:02:03]}  b6 {[%clk 0:01:47]} 16. O-O {[%clk 0:02:03]}  bxc5 {[%clk 0:01:47]} 17. bxc5 {[%clk 0:02:03]}  Bc6 {[%clk 0:01:16]} 18. Nd4 {[%clk 0:01:54]}  Qd7 {[%clk 0:01:11]} 19. Bd6 {[%clk 0:01:47]}  Ba4 {[%clk 0:01:01]} 20. Bb5 {[%clk 0:01:20]}  Bxb5 {[%clk 0:00:59]} 21. Qxb5 {[%clk 0:01:20]}  Rac8 {[%clk 0:00:16]} 22. Rab1 {[%clk 0:01:10]}  e5 {[%clk 0:00:15]} 23. Qxd7 {[%clk 0:01:09]}  Nxd7 {[%clk 0:00:15]} 24. Nf5 {[%clk 0:01:10]}  Nxc5 {[%clk 0:00:07]} 25. Ne7+ {[%clk 0:01:09]}  Rxe7 {[%clk 0:00:07]} 26. Bxe7 {[%clk 0:01:09]}  Nd3 {[%clk 0:00:07]} 27. Rb3 {[%clk 0:00:56]}  e4 {[%clk 0:00:07]} 28. Bxg5 {[%clk 0:00:48]}  hxg5 {[%clk 0:00:07]} 29. fxe4 {[%clk 0:00:49]}  dxe4 {[%clk 0:00:06]} 30. Rb7 {[%clk 0:00:49]}  f6 {[%clk 0:00:06]} 31. Rxa7 {[%clk 0:00:49]}  Rc2 {[%clk 0:00:05]} 32. Rb1 {[%clk 0:00:41]}  Re2 {[%clk 0:00:04]} 33. h3 {[%clk 0:00:37]}  Rxe3 {[%clk 0:00:04]} 34. Rbb7 {[%clk 0:00:37]} 1-0


[Site "https://www.chess.com"]

[Event "Titled Tuesday Blitz April 11 Early 2023"]
[White "Gatterer, Florian"]
[Black "Wong, Yinn Long"]
[WhiteFideId "811688"]
[BlackFideId "5707684"]
[WhiteElo "2221"]
[BlackElo "2271"]
[Result "0-1"]
[Round "01"]
[TimeControl "180+2"]
[Date "2023.04.11"]
[WhiteClock "0:00:01"]
[BlackClock "0:00:43"]

1. Nf3 {[%clk 0:03:00]}  d5 {[%clk 0:02:59]} 2. g3 {[%clk 0:02:58]}  Nd7 {[%clk 0:03:00]} 3. d4 {[%clk 0:02:57]}  Nb6 {[%clk 0:03:00]} 4. Bg2 {[%clk 0:02:57]}  Nf6 {[%clk 0:03:00]} 5. O-O {[%clk 0:02:56]}  Bf5 {[%clk 0:03:00]} 6. a4 {[%clk 0:02:52]}  a5 {[%clk 0:03:00]} 7. Nh4 {[%clk 0:02:44]}  Be4 {[%clk 0:02:59]} 8. f3 {[%clk 0:02:43]}  Bg6 {[%clk 0:03:00]} 9. Nc3 {[%clk 0:02:40]}  e6 {[%clk 0:02:58]} 10. e4 {[%clk 0:02:39]}  c5 {[%clk 0:02:36]} 11. Nxg6 {[%clk 0:02:28]}  hxg6 {[%clk 0:02:36]} 12. Nb5 {[%clk 0:02:18]}  dxe4 {[%clk 0:02:20]} 13. Bf4 {[%clk 0:02:09]}  Nbd5 {[%clk 0:02:17]} 14. fxe4 {[%clk 0:01:41]}  Nxf4 {[%clk 0:02:17]} 15. gxf4 {[%clk 0:01:42]}  cxd4 {[%clk 0:02:15]} 16. f5 {[%clk 0:01:42]}  e5 {[%clk 0:01:51]} 17. fxg6 {[%clk 0:01:35]}  Bc5 {[%clk 0:01:48]} 18. gxf7+ {[%clk 0:01:33]}  Kxf7 {[%clk 0:01:49]} 19. Qd3 {[%clk 0:01:31]}  Rc8 {[%clk 0:01:42]} 20. Kh1 {[%clk 0:01:21]}  Rh5 {[%clk 0:01:39]} 21. Bf3 {[%clk 0:00:59]}  Rh4 {[%clk 0:01:39]} 22. Bg2 {[%clk 0:00:47]}  g6 {[%clk 0:01:26]} 23. Rad1 {[%clk 0:00:46]}  Qh8 {[%clk 0:01:13]} 24. h3 {[%clk 0:00:46]}  g5 {[%clk 0:01:11]} 25. Rxf6+ {[%clk 0:00:27]}  Kxf6 {[%clk 0:01:09]} 26. Rf1+ {[%clk 0:00:26]}  Rf4 {[%clk 0:01:09]} 27. Rxf4+ {[%clk 0:00:22]}  gxf4 {[%clk 0:01:09]} 28. Qc4 {[%clk 0:00:22]}  Qg8 {[%clk 0:01:08]} 29. Qe2 {[%clk 0:00:19]}  d3 {[%clk 0:01:02]} 30. cxd3 {[%clk 0:00:18]}  Be3 {[%clk 0:01:01]} 31. Nc3 {[%clk 0:00:16]}  Qg5 {[%clk 0:00:56]} 32. Nd5+ {[%clk 0:00:12]}  Ke6 {[%clk 0:00:57]} 33. Nc3 {[%clk 0:00:10]}  Bd4 {[%clk 0:00:51]} 34. Qc2 {[%clk 0:00:07]}  f3 {[%clk 0:00:43]} 35. Qb3+ {[%clk 0:00:07]}  Kf6 {[%clk 0:00:43]} 36. Nd5+ {[%clk 0:00:07]}  Kg6 {[%clk 0:00:44]} 37. Qxb7 {[%clk 0:00:01]}  Qxg2# {[%clk 0:00:43]} 0-1


[Site "https://www.chess.com"]

[Event "Titled Tuesday Blitz April 11 Early 2023"]
[White "Csonka, Balazs"]
[Black "Mazurkiewicz, Michal"]
[WhiteFideId "742910"]
[BlackFideId "1124943"]
[WhiteElo "2404"]
[BlackElo "2054"]
[Result "1/2-1/2"]
[Round "01"]
[TimeControl "180+2"]
[Date "2023.04.11"]
[WhiteClock "0:00:04"]
[BlackClock "0:00:08"]

1. d4 {[%clk 0:03:00]}  Nf6 {[%clk 0:02:59]} 2. c4 {[%clk 0:02:59]}  e5 {[%clk 0:02:56]} 3. dxe5 {[%clk 0:02:56]}  Ng4 {[%clk 0:02:56]} 4. e3 {[%clk 0:02:51]}  Nxe5 {[%clk 0:02:56]} 5. Nh3 {[%clk 0:02:51]}  d5 {[%clk 0:02:57]} 6. cxd5 {[%clk 0:02:38]}  Bxh3 {[%clk 0:02:56]} 7. gxh3 {[%clk 0:02:37]}  Bd6 {[%clk 0:02:56]} 8. Bg2 {[%clk 0:02:33]}  Nbd7 {[%clk 0:02:54]} 9. Nc3 {[%clk 0:02:28]}  Ng6 {[%clk 0:02:43]} 10. O-O {[%clk 0:02:16]}  O-O {[%clk 0:02:40]} 11. f4 {[%clk 0:02:06]}  f5 {[%clk 0:02:38]} 12. Qh5 {[%clk 0:01:56]}  Qf6 {[%clk 0:02:18]} 13. Bd2 {[%clk 0:01:53]}  Rae8 {[%clk 0:02:17]} 14. Rae1 {[%clk 0:01:50]}  a6 {[%clk 0:02:17]} 15. Kh1 {[%clk 0:01:40]}  Nh4 {[%clk 0:02:14]} 16. Rf2 {[%clk 0:01:23]}  g6 {[%clk 0:01:58]} 17. Qe2 {[%clk 0:01:15]}  Nxg2 {[%clk 0:01:54]} 18. Kxg2 {[%clk 0:01:15]}  Qh4 {[%clk 0:01:49]} 19. Qf3 {[%clk 0:01:04]}  Nc5 {[%clk 0:01:47]} 20. e4 {[%clk 0:00:56]}  fxe4 {[%clk 0:01:25]} 21. Nxe4 {[%clk 0:00:57]}  Nxe4 {[%clk 0:00:58]} 22. Rxe4 {[%clk 0:00:58]}  Qf6 {[%clk 0:00:33]} 23. Bc3 {[%clk 0:00:18]}  Qf5 {[%clk 0:00:33]} 24. Rfe2 {[%clk 0:00:15]}  Rxe4 {[%clk 0:00:33]} 25. Rxe4 {[%clk 0:00:16]}  Bxf4 {[%clk 0:00:32]} 26. Kh1 {[%clk 0:00:14]}  Bd6 {[%clk 0:00:29]} 27. Qxf5 {[%clk 0:00:11]}  Rxf5 {[%clk 0:00:30]} 28. Re8+ {[%clk 0:00:11]}  Kf7 {[%clk 0:00:29]} 29. Rh8 {[%clk 0:00:11]}  Rxd5 {[%clk 0:00:29]} 30. Rxh7+ {[%clk 0:00:11]}  Ke6 {[%clk 0:00:29]} 31. Rh6 {[%clk 0:00:06]}  Kf5 {[%clk 0:00:29]} 32. h4 {[%clk 0:00:06]}  b5 {[%clk 0:00:24]} 33. h5 {[%clk 0:00:04]}  b4 {[%clk 0:00:15]} 34. Bh8 {[%clk 0:00:04]}  Rd1+ {[%clk 0:00:07]} 35. Kg2 {[%clk 0:00:04]}  Rd2+ {[%clk 0:00:07]} 36. Kf3 {[%clk 0:00:04]}  Rxh2 {[%clk 0:00:07]} 37. Rxg6 {[%clk 0:00:05]}  Rxh5 {[%clk 0:00:07]} 38. Rg8 {[%clk 0:00:05]}  Rh3+ {[%clk 0:00:07]} 39. Ke2 {[%clk 0:00:05]}  Rh2+ {[%clk 0:00:07]} 40. Kd3 {[%clk 0:00:05]}  Ke6 {[%clk 0:00:08]} 41. Kc4 {[%clk 0:00:05]}  Rh4+ {[%clk 0:00:07]} 42. Kb3 {[%clk 0:00:04]}  Kd5 {[%clk 0:00:07]} 43. Bf6 {[%clk 0:00:04]}  Rh3+ {[%clk 0:00:07]} 44. Ka4 {[%clk 0:00:03]}  Kc6 {[%clk 0:00:06]} 45. Rg6 {[%clk 0:00:02]}  Re3 {[%clk 0:00:04]} 46. Bg5 {[%clk 0:00:02]}  Rg3 {[%clk 0:00:05]} 47. Rg7 {[%clk 0:00:02]}  Kb7 {[%clk 0:00:05]} 48. Bf6 {[%clk 0:00:02]}  Rxg7 {[%clk 0:00:05]} 49. Bxg7 {[%clk 0:00:03]}  c5 {[%clk 0:00:06]} 50. Kb3 {[%clk 0:00:04]}  Kc6 {[%clk 0:00:06]} 51. Kc4 {[%clk 0:00:04]}  Be7 {[%clk 0:00:05]} 52. Bh6 {[%clk 0:00:03]}  Bf6 {[%clk 0:00:05]} 53. b3 {[%clk 0:00:04]}  Be5 {[%clk 0:00:04]} 54. Be3 {[%clk 0:00:04]}  Bd6 {[%clk 0:00:04]} 55. Bc1 {[%clk 0:00:04]}  Be5 {[%clk 0:00:05]} 56. Be3 {[%clk 0:00:04]}  Bd6 {[%clk 0:00:05]} 57. Bf2 {[%clk 0:00:04]}  Be7 {[%clk 0:00:06]} 58. Bg3 {[%clk 0:00:04]}  Bd6 {[%clk 0:00:05]} 59. Bh4 {[%clk 0:00:04]}  Bf8 {[%clk 0:00:06]} 60. Bg5 {[%clk 0:00:04]}  Bg7 {[%clk 0:00:06]} 61. Bc1 {[%clk 0:00:04]}  Bd4 {[%clk 0:00:06]} 62. a4 {[%clk 0:00:03]}  bxa3 {[%clk 0:00:06]} 63. Bxa3 {[%clk 0:00:03]}  Be3 {[%clk 0:00:06]} 64. b4 {[%clk 0:00:02]}  cxb4 {[%clk 0:00:06]} 65. Bxb4 {[%clk 0:00:03]}  Bc5 {[%clk 0:00:06]} 66. Bxc5 {[%clk 0:00:03]}  a5 {[%clk 0:00:07]} 67. Bb4 {[%clk 0:00:03]}  a4 {[%clk 0:00:07]} 68. Ba3 {[%clk 0:00:02]}  Kb6 {[%clk 0:00:07]} 69. Kb4 {[%clk 0:00:03]}  Kc6 {[%clk 0:00:08]} 70. Kxa4 {[%clk 0:00:04]} 1/2-1/2


[Site "https://www.chess.com"]

[Event "Titled Tuesday Blitz April 11 Early 2023"]
[White "Cherniaiev, Tykhon"]
[Black "Zhukova, Natalia"]
[WhiteFideId "14182360"]
[BlackFideId "14101513"]
[WhiteElo "2450"]
[BlackElo "2297"]
[Result "1-0"]
[Round "01"]
[TimeControl "180+2"]
[Date "2023.04.11"]
[WhiteClock "0:00:03"]
[BlackClock "0:00:03"]

1. Nf3 {[%clk 0:03:00]}  d5 {[%clk 0:02:58]} 2. d4 {[%clk 0:02:56]}  Nf6 {[%clk 0:02:56]} 3. c4 {[%clk 0:02:55]}  e6 {[%clk 0:02:56]} 4. Nc3 {[%clk 0:02:54]}  c5 {[%clk 0:02:53]} 5. cxd5 {[%clk 0:02:54]}  Nxd5 {[%clk 0:02:54]} 6. g3 {[%clk 0:02:51]}  Nxc3 {[%clk 0:02:52]} 7. bxc3 {[%clk 0:02:51]}  cxd4 {[%clk 0:02:52]} 8. cxd4 {[%clk 0:02:52]}  Bb4+ {[%clk 0:02:53]} 9. Bd2 {[%clk 0:02:52]}  Bxd2+ {[%clk 0:02:53]} 10. Qxd2 {[%clk 0:02:52]}  b6 {[%clk 0:02:44]} 11. Bg2 {[%clk 0:02:52]}  Bb7 {[%clk 0:02:44]} 12. O-O {[%clk 0:02:53]}  O-O {[%clk 0:02:44]} 13. Rac1 {[%clk 0:02:52]}  Nd7 {[%clk 0:02:41]} 14. Rfd1 {[%clk 0:02:15]}  Rc8 {[%clk 0:02:13]} 15. Rxc8 {[%clk 0:02:11]}  Qxc8 {[%clk 0:02:14]} 16. Rc1 {[%clk 0:02:11]}  Qb8 {[%clk 0:02:14]} 17. Qb4 {[%clk 0:02:03]}  Rc8 {[%clk 0:02:12]} 18. Rxc8+ {[%clk 0:01:52]}  Qxc8 {[%clk 0:02:11]} 19. Qe7 {[%clk 0:01:38]}  h6 {[%clk 0:01:56]} 20. Ne5 {[%clk 0:00:54]}  Nxe5 {[%clk 0:01:52]} 21. Bxb7 {[%clk 0:00:49]}  Qc1+ {[%clk 0:01:16]} 22. Kg2 {[%clk 0:00:49]}  Ng6 {[%clk 0:01:17]} 23. Qd8+ {[%clk 0:00:32]}  Nf8 {[%clk 0:01:15]} 24. Bf3 {[%clk 0:00:32]}  Qc4 {[%clk 0:01:08]} 25. a3 {[%clk 0:00:30]}  Qa4 {[%clk 0:00:33]} 26. Qe7 {[%clk 0:00:25]}  Qxd4 {[%clk 0:00:17]} 27. Qxa7 {[%clk 0:00:24]}  g5 {[%clk 0:00:12]} 28. h3 {[%clk 0:00:21]}  Kg7 {[%clk 0:00:12]} 29. e3 {[%clk 0:00:20]}  Qc5 {[%clk 0:00:12]} 30. a4 {[%clk 0:00:16]}  Ng6 {[%clk 0:00:12]} 31. Bh5 {[%clk 0:00:12]}  Ne5 {[%clk 0:00:11]} 32. Qb7 {[%clk 0:00:11]}  Qa5 {[%clk 0:00:08]} 33. Qe4 {[%clk 0:00:08]}  Qc5 {[%clk 0:00:06]} 34. Be2 {[%clk 0:00:06]}  Ng6 {[%clk 0:00:05]} 35. Bd3 {[%clk 0:00:05]}  Qd5 {[%clk 0:00:03]} 36. Qxd5 {[%clk 0:00:03]}  exd5 {[%clk 0:00:03]} 37. Bb5 {[%clk 0:00:02]}  Ne5 {[%clk 0:00:04]} 38. f4 {[%clk 0:00:02]}  Nc4 {[%clk 0:00:04]} 39. Kf3 {[%clk 0:00:03]}  Nd6 {[%clk 0:00:03]} 40. Bc6 {[%clk 0:00:03]} 1-0


[Site "https://www.chess.com"]